bitfinex/quotes_BTCUSD_20250204
["timestamp","ask_amount","ask_price","bid_price","bid_amount"]
[1738673352545,0.00469018,99230.0,99223.0,0.01875377]
[1738673352747,0.00469018,99230.0,99226.0,0.151169]
[1738673352970,0.00469018,99230.0,99223.0,0.01875377]
[1738673353188,0.00469018,99230.0,99224.0,0.151171]
[1738673353388,0.0001068,99231.0,99224.0,0.151171]
[1738673353590,0.00566439,99229.0,99228.0,0.151166]
[1738673353791,0.0001068,99231.0,99228.0,0.151166]
[1738673353951,0.0001068,99231.0,99226.0,0.151168]
[1738673354157,0.00566477,99230.0,99226.0,0.151168]
[1738673354359,0.00566477,99230.0,99227.0,0.151167]
[1738673354569,0.00566477,99230.0,99227.0,0.16992077]
[1738673355144,0.00566477,99230.0,99228.0,0.151166]
[1738673355374,0.0001068,99231.0,99229.0,0.00120921]
[1738673355553,0.00566439,99229.0,99227.0,0.01875377]
[1738673355753,0.0001068,99231.0,99227.0,0.16992077]
[1738673355957,0.0001068,99231.0,99225.0,0.201562]
[1738673355958,0.0001068,99231.0,99230.0,0.01875377]
[1738673356138,0.0001068,99231.0,99230.0,0.16991677]
[1738673356591,0.08024193,99243.0,99230.0,0.09645377]
[1738673356798,0.08024193,99243.0,99234.0,0.151156]
[1738673356799,0.23138693,99243.0,99234.0,0.151156]
[1738673357138,0.151132,99251.0,99243.0,0.0777]
[1738673357331,0.15,99251.0,99243.0,0.228843]
[1738673357465,0.15,99251.0,99243.0,0.0777]
[1738673357683,0.15,99249.0,99243.0,0.0777]
[1738673357876,0.15,99249.0,99244.0,0.151142]
[1738673358442,0.15,99249.0,99243.0,0.0777]
[1738673358443,0.3027,99256.0,99249.0,0.151134]
[1738673358654,0.151126,99255.0,99247.0,0.151136]
[1738673358834,0.2015,99256.0,99246.0,0.151138]
[1738673358965,0.151131,99251.0,99250.0,0.01875377]
[1738673359410,0.1560202,99251.0,99250.0,0.01875377]
[1738673361538,0.1370202,99251.0,99250.0,0.01875377]
[1738673362762,0.0048892,99251.0,99250.0,0.01975377]
[1738673363180,0.15113,99252.0,99250.0,0.01975377]
[1738673363401,0.00490359,99251.0,99250.0,0.01975377]
[1738673363783,0.151128,99254.0,99250.0,0.01975377]
[1738673364048,0.00490359,99251.0,99250.0,0.01975377]
[1738673364241,9.498e-05,99254.0,99250.0,0.02075377]
[1738673364367,0.00490359,99251.0,99250.0,0.02075377]
[1738673364574,0.15122198,99254.0,99250.0,0.02075377]
[1738673364814,0.00490359,99251.0,99250.0,0.01975377]
[1738673364966,9.498e-05,99254.0,99250.0,0.01975377]
[1738673365168,9.498e-05,99254.0,99252.0,0.15113]
[1738673365455,0.00490436,99253.0,99251.0,0.0767]
[1738673365589,0.00490436,99253.0,99251.0,0.227831]
[1738673365789,0.00490436,99253.0,99251.0,0.0767]
[1738673366328,0.00490436,99253.0,99252.0,0.01875377]
[1738673366557,0.201492,99260.0,99252.0,0.01875377]
[1738673366747,0.13629265,99262.0,99252.0,0.01875377]
[1738673366981,0.151126,99255.0,99252.0,0.01875377]
[1738673367981,0.151126,99255.0,99253.0,0.01875377]
[1738673368390,0.151124,99257.0,99253.0,0.01875377]
[1738673368612,0.13629265,99262.0,99253.0,0.01875377]
[1738673368726,0.15,99266.0,99253.0,0.01875377]
[1738673369133,0.151124,99256.0,99252.0,0.001]
[1738673369575,0.151126,99255.0,99252.0,0.001]
[1738673369771,0.151123,99257.0,99250.0,0.151133]
[1738673370429,0.151124,99256.0,99250.0,0.151133]
[1738673370582,0.151122,99257.0,99250.0,0.151133]
[1738673371223,0.151125,99256.0,99253.0,0.001]
[1738673371423,0.132125,99256.0,99253.0,0.001]
[1738673371870,0.201478,99266.0,99253.0,0.001]
[1738673372078,0.151123,99257.0,99253.0,0.001]
[1738673372380,0.09375418,99267.0,99253.0,0.001]
[1738673372535,0.151114,99263.0,99256.0,0.151123]
[1738673372735,0.01351225,99267.0,99249.0,0.201512]
[1738673372947,0.151117,99261.0,99255.0,0.151124]
[1738673373374,0.151114,99263.0,99256.0,0.151123]
[1738673373573,0.20148,99265.0,99254.0,0.0482]
[1738673373793,0.151115,99262.0,99255.0,0.151124]
[1738673374139,0.151115,99262.0,99256.0,0.151123]
[1738673374313,0.20148,99265.0,99256.0,0.151123]
[1738673374660,0.151109,99266.0,99256.0,0.201498]
[1738673374908,0.151109,99266.0,99260.0,0.151118]
[1738673375143,0.15111,99265.0,99259.0,0.151119]
[1738673375324,0.01351225,99267.0,99256.0,0.201497]
[1738673375458,0.151114,99263.0,99255.0,0.201501]
[1738673375672,0.01351225,99267.0,99254.0,0.0482]
[1738673376057,0.201478,99266.0,99256.0,0.151123]
[1738673376267,0.001,99262.0,99254.0,0.0482]
[1738673376442,0.001,99262.0,99250.0,0.001]
[1738673376672,0.2015,99256.0,99250.0,0.001]
[1738673377196,0.151127,99254.0,99250.0,0.001]
[1738673377403,0.151127,99254.0,99249.0,0.151134]
[1738673377598,0.151128,99254.0,99245.0,0.201521]
[1738673377755,0.151128,99254.0,99244.0,0.12789498]
[1738673377958,0.151128,99254.0,99248.0,0.151135]
[1738673378484,0.151129,99253.0,99248.0,0.151135]
[1738673378835,0.151125,99256.0,99249.0,0.151133]
[1738673379011,0.20148,99265.0,99247.0,0.151136]
[1738673379175,0.151129,99253.0,99248.0,0.151136]
[1738673379349,0.151122,99258.0,99252.0,0.15113]
[1738673379553,0.151123,99257.0,99251.0,0.151131]
[1738673379754,0.07575418,99267.0,99250.0,0.151132]
[1738673379977,0.07675418,99267.0,99245.0,0.001]
[1738673380184,0.151123,99257.0,99251.0,0.151131]
[1738673380609,0.151123,99257.0,99245.0,0.001]
[1738673380820,0.151123,99257.0,99252.0,0.15113]
[1738673381268,0.201492,99260.0,99252.0,0.15113]
[1738673381478,0.151121,99258.0,99252.0,0.15113]
[1738673381709,0.0001068,99261.0,99250.0,0.00022428]
[1738673381919,0.0001068,99261.0,99256.0,0.151122]
[1738673382145,0.0001068,99261.0,99250.0,0.00022428]
[1738673382393,0.1512238,99261.0,99250.0,0.00022428]
[1738673382621,0.1512238,99261.0,99256.0,0.151124]
[1738673383302,0.151118,99260.0,99254.0,0.151125]
[1738673383531,0.15112,99259.0,99251.0,0.201509]
[1738673383769,0.1512228,99261.0,99255.0,0.151124]
[1738673384382,0.0001068,99261.0,99252.0,0.201507]
[1738673384582,0.0001068,99261.0,99250.0,0.00022428]
[1738673384786,0.201492,99260.0,99250.0,0.00022428]
[1738673384986,0.151118,99260.0,99254.0,0.151126]
[1738673385428,0.15112,99259.0,99254.0,0.151126]
[1738673386138,0.1512248,99261.0,99255.0,0.151125]
[1738673386297,0.0001068,99261.0,99253.0,0.151128]
[1738673386663,0.201489,99261.0,99253.0,0.151128]
[1738673386833,0.151121,99258.0,99250.0,0.20173328]
[1738673387043,0.151124,99257.0,99251.0,0.151131]
[1738673387244,0.151131,99251.0,99250.0,0.00022428]
[1738673387444,0.201486,99262.0,99250.0,0.00022428]
[1738673387650,0.151129,99253.0,99250.0,0.00022428]
[1738673387816,0.151125,99255.0,99250.0,0.00022428]
[1738673388219,0.201493,99259.0,99250.0,0.00022428]
[1738673388427,0.151131,99251.0,99250.0,0.00022428]
[1738673388628,0.151129,99253.0,99250.0,0.00022428]
[1738673388848,0.201482,99264.0,99250.0,0.00022428]
[1738673389070,0.151128,99254.0,99250.0,0.00022428]
[1738673389477,0.0761,99265.0,99250.0,0.15135728]
[1738673389690,0.151126,99255.0,99250.0,0.00022428]
[1738673389891,0.0761,99265.0,99250.0,0.00022428]
[1738673389892,0.151127,99254.0,99250.0,0.00022428]
[1738673390446,0.20149,99261.0,99250.0,0.00022428]
[1738673390793,0.0761,99265.0,99250.0,0.00022428]
[1738673390972,0.151127,99254.0,99250.0,0.00022428]
[1738673391443,0.0571,99265.0,99250.0,0.00022428]
[1738673391628,0.0571,99265.0,99250.0,0.00122428]
[1738673391629,0.201482,99264.0,99250.0,0.00122428]
[1738673391849,0.201482,99264.0,99250.0,0.00022428]
[1738673392056,0.554081,99263.0,99250.0,0.00022428]
[1738673392207,0.151126,99255.0,99250.0,0.00022428]
[1738673392419,0.151126,99255.0,99250.0,0.00122428]
[1738673392844,0.151126,99255.0,99250.0,0.00222428]
[1738673393043,0.151128,99254.0,99253.0,0.051862]
[1738673396571,0.132128,99254.0,99253.0,0.051862]
[1738673398103,0.192498,99254.0,99253.0,0.051862]
[1738673398311,0.14529968,99254.0,99253.0,0.051862]
[1738673398960,0.14529968,99254.0,99253.0,0.052862]
[1738673399950,0.14529968,99254.0,99253.0,0.051862]
[1738673401574,0.01317168,99254.0,99253.0,0.051862]
[1738673401755,0.151128,99254.0,99253.0,0.051862]
[1738673401967,0.151128,99254.0,99253.0,0.05707063]
[1738673402387,0.151128,99254.0,99253.0,0.051862]
[1738673404585,0.151128,99254.0,99253.0,0.07067351]
[1738673404926,0.3027,99255.0,99253.0,0.07067351]
[1738673405129,0.151127,99254.0,99253.0,0.07067351]
[1738673405541,0.3027,99255.0,99254.0,0.151127]
[1738673405744,0.3027,99255.0,99254.0,0.15821678]
[1738673406354,0.3027,99255.0,99254.0,0.17702829]
[1738673406560,0.2837,99255.0,99254.0,0.17702829]
[1738673407602,0.0001068,99264.0,99263.0,0.151113]
[1738673410312,0.0011068,99264.0,99263.0,0.151113]
[1738673410521,0.0011068,99264.0,99263.0,0.33530677]
[1738673410725,0.0011068,99264.0,99263.0,0.33409806]
[1738673411529,0.06134873,99277.0,99276.0,0.151093]
[1738673411977,0.06134873,99277.0,99275.0,0.151094]
[1738673412184,0.01634251,99279.0,99274.0,0.201462]
[1738673412389,0.01634251,99279.0,99263.0,0.18298506]
[1738673412390,0.2837,99285.0,99280.0,0.151087]
[1738673412731,0.30087619,99285.0,99280.0,0.151087]
[1738673412932,0.30087619,99285.0,99277.0,0.201454]
[1738673412933,0.30087619,99285.0,99265.0,0.0457]
[1738673413155,0.151081,99284.0,99266.0,0.10359363]
[1738673413365,0.30087619,99285.0,99274.0,0.002]
[1738673413567,0.45195619,99285.0,99279.0,0.151089]
[1738673413771,0.45195619,99285.0,99274.0,0.002]
[1738673413772,0.151084,99282.0,99274.0,0.002]
[1738673413979,0.45195719,99285.0,99275.0,0.201458]
[1738673414192,0.45195719,99285.0,99278.0,0.15109]
[1738673414467,0.45195719,99285.0,99280.0,0.01877753]
[1738673414642,0.30087619,99285.0,99280.0,0.17186453]
[1738673415119,0.28417125,99285.0,99284.0,0.151081]
[1738673415384,0.28417125,99285.0,99284.0,0.25346606]
[1738673415560,0.00047125,99285.0,99284.0,0.29896606]
[1738673415683,0.00047125,99285.0,99284.0,0.37766606]
[1738673416519,0.08024193,99297.0,99296.0,0.151063]
[1738673416520,0.06203388,99297.0,99296.0,0.151063]
[1738673416722,0.06203388,99297.0,99293.0,0.151067]
[1738673416936,0.06203388,99297.0,99285.0,0.0779]
[1738673416937,0.0621752,99297.0,99275.0,0.0828]
[1738673417110,0.0621752,99297.0,99281.0,0.00120846]
[1738673417345,0.00453724,99296.0,99284.0,0.15108]
[1738673417521,0.15107,99292.0,99280.0,0.00120846]
[1738673417722,0.00453492,99291.0,99278.0,0.001]
[1738673418128,0.201439,99286.0,99278.0,0.001]
[1738673418333,0.00453261,99285.0,99275.0,0.002]
[1738673418576,0.151085,99282.0,99276.0,0.10238506]
[1738673418775,0.0762,99294.0,99280.0,0.002]
[1738673419113,0.00452618,99281.0,99280.0,0.002]
[1738673419317,0.151079,99286.0,99284.0,0.001]
[1738673419647,0.151079,99286.0,99280.0,0.002]
[1738673419844,0.0762,99294.0,99280.0,0.002]
[1738673420046,0.201434,99288.0,99280.0,0.001]
[1738673420288,0.15108,99285.0,99280.0,0.001]
[1738673420524,0.151078,99287.0,99280.0,0.001]
[1738673420823,0.151078,99287.0,99281.0,0.151084]
[1738673421031,0.151081,99285.0,99280.0,0.001]
[1738673421180,0.0762,99294.0,99280.0,0.003]
[1738673421181,0.151086,99281.0,99280.0,0.003]
[1738673421395,0.132086,99281.0,99280.0,0.003]
[1738673421618,0.132086,99281.0,99280.0,0.002]
[1738673422040,0.201445,99283.0,99280.0,0.001]
[1738673422180,0.151086,99281.0,99280.0,0.001]
[1738673422377,0.201445,99283.0,99278.0,0.00022428]
[1738673422617,0.151089,99279.0,99278.0,0.00022428]
[1738673423418,0.15577727,99279.0,99278.0,0.00022428]
[1738673424672,0.15577727,99279.0,99278.0,0.00122428]
[1738673424995,0.15577727,99279.0,99278.0,0.00322428]
[1738673425804,0.15577727,99279.0,99278.0,0.00022428]
[1738673426165,0.15577727,99279.0,99278.0,0.00122428]
[1738673426369,0.13677727,99279.0,99278.0,0.00122428]
[1738673426634,0.66614201,99279.0,99278.0,0.00122428]
[1738673426844,0.76852707,99279.0,99278.0,0.00122428]
[1738673427667,0.79152707,99279.0,99278.0,0.00122428]
[1738673427891,0.79152707,99279.0,99278.0,0.00222428]
[1738673428090,0.79152707,99279.0,99278.0,0.00122428]
[1738673428296,0.84032707,99279.0,99250.0,0.00022428]
[1738673428504,0.279127,99254.0,99250.0,0.00022428]
[1738673428717,0.562827,99254.0,99250.0,0.00022428]
[1738673428891,0.56753767,99254.0,99250.0,0.00022428]
[1738673429766,0.56753767,99254.0,99253.0,0.05308628]
[1738673429973,0.56753767,99254.0,99253.0,0.05355753]
[1738673430388,0.81992273,99254.0,99253.0,0.05355753]
[1738673430593,0.84292273,99254.0,99253.0,0.05355753]
[1738673431940,0.84292273,99254.0,99253.0,0.05255753]
[1738673432140,0.84292273,99254.0,99253.0,5.3e-07]
[1738673432141,0.90332273,99254.0,99253.0,5.3e-07]
[1738673432576,0.90332273,99254.0,99250.0,8.1e-07]
[1738673432577,0.381831,99251.0,99250.0,8.1e-07]
[1738673432736,2.05371606,99251.0,99250.0,8.1e-07]
[1738673432939,2.05876567,99251.0,99250.0,8.1e-07]
[1738673434624,2.05876567,99251.0,99239.0,0.04]
[1738673434625,0.380244,99243.0,99242.0,0.00018509]
[1738673434830,0.50562906,99243.0,99242.0,1.7e-07]
[1738673435039,0.55567753,99243.0,99242.0,1.7e-07]
[1738673435687,0.301148,99240.0,99239.0,0.01044017]
[1738673435894,0.78933306,99240.0,99239.0,0.01044017]
[1738673436100,0.79435446,99240.0,99239.0,0.01044017]
[1738673436897,0.79635446,99240.0,99239.0,0.01044017]
[1738673437101,0.87856055,99240.0,99239.0,0.01044017]
[1738673437347,0.87856055,99240.0,99239.0,1.7e-07]
[1738673437554,0.402777,99221.0,99220.0,0.00022428]
[1738673437764,0.83656206,99221.0,99220.0,0.00022428]
[1738673437972,0.84157753,99221.0,99220.0,0.00022428]
[1738673438828,0.84257753,99221.0,99220.0,0.00022428]
[1738673440013,0.87527001,99221.0,99220.0,0.00022428]
[1738673440996,0.84957753,99221.0,99220.0,0.00122428]
[1738673441710,0.86579784,99221.0,99220.0,0.00122428]
[1738673444383,0.86579784,99221.0,99220.0,2.8e-07]
[1738673446079,0.86579784,99221.0,99220.0,0.00022456]
[1738673446689,0.96829256,99221.0,99220.0,0.00022456]
[1738673448154,0.86579784,99221.0,99220.0,0.00022456]
[1738673448785,0.78866192,99221.0,99220.0,0.00022456]
[1738673448929,0.74096192,99221.0,99220.0,0.00022456]
[1738673449129,0.56796192,99221.0,99220.0,0.00022456]
[1738673449342,0.41678492,99221.0,99220.0,0.00022456]
[1738673449536,0.71796192,99221.0,99220.0,0.00022456]
[1738673450516,0.71096192,99221.0,99220.0,0.00022428]
[1738673451335,0.70996192,99221.0,99220.0,0.00022428]
[1738673451461,0.69096192,99221.0,99220.0,0.00022428]
[1738673452195,0.69096192,99221.0,99220.0,0.00122428]
[1738673452196,0.27817955,99221.0,99220.0,0.00122428]
[1738673452399,0.27817955,99221.0,99220.0,0.00886671]
[1738673452610,0.42935655,99221.0,99220.0,0.00886671]
[1738673452810,0.27817955,99221.0,99220.0,0.00122428]
[1738673453619,0.42935655,99221.0,99220.0,0.00122428]
[1738673454585,0.42235655,99221.0,99220.0,0.00022428]
[1738673455188,0.42535655,99221.0,99220.0,0.00022428]
[1738673455394,0.42535655,99221.0,99220.0,0.00122428]
[1738673455923,0.01,99212.0,99172.0,0.01]
[1738673456100,0.20159,99211.0,99176.0,0.201661]
[1738673456257,0.151199,99207.0,99198.0,0.151211]
[1738673456470,0.132199,99207.0,99195.0,0.151217]
[1738673456643,0.00671252,99206.0,99192.0,0.201628]
[1738673456850,0.00671252,99206.0,99194.0,0.151218]
[1738673457057,0.201615,99199.0,99178.0,0.201657]
[1738673457307,0.08024193,99207.0,99179.0,0.20286459]
[1738673457308,0.151217,99195.0,99179.0,0.20286459]
[1738673457512,0.00671092,99198.0,99179.0,0.00120959]
[1738673457736,0.201617,99198.0,99179.0,0.00120959]
[1738673457937,0.151221,99193.0,99178.0,0.10238506]
[1738673458206,0.20832547,99197.0,99178.0,0.10238506]
[1738673458399,0.00670546,99192.0,99180.0,0.00938765]
[1738673458581,0.151223,99191.0,99181.0,0.00120973]
[1738673458786,0.006696,99190.0,99181.0,0.00120973]
[1738673458930,0.151222,99192.0,99182.0,0.0822]
[1738673459131,0.0066962,99191.0,99182.0,0.0822]
[1738673459377,0.151227,99189.0,99182.0,0.0822]
[1738673459579,0.00669559,99188.0,99182.0,0.0822]
[1738673459800,0.201635,99189.0,99183.0,0.00938765]
[1738673460003,0.00669539,99187.0,99183.0,0.00938765]
[1738673460204,0.00669559,99188.0,99184.0,0.00706255]
[1738673460410,0.00669519,99186.0,99184.0,0.00120976]
[1738673460663,0.2647,99202.0,99183.0,0.00938765]
[1738673460664,0.151229,99187.0,99183.0,0.00938765]
[1738673460883,0.151228,99188.0,99183.0,0.00938765]
[1738673461091,0.00666651,99186.0,99183.0,0.00938765]
[1738673461445,0.142234,99184.0,99183.0,0.00938765]
[1738673461781,0.01666398,99184.0,99182.0,0.001]
[1738673461984,0.151235,99183.0,99182.0,0.001]
[1738673462302,0.151243,99178.0,99177.0,0.0001402]
[1738673462693,0.15790578,99178.0,99177.0,0.0001402]
[1738673463089,0.00666278,99178.0,99177.0,0.0001402]
[1738673463497,0.01,99183.0,99177.0,0.0001402]
[1738673463693,0.00682236,99178.0,99177.0,0.0001402]
[1738673463896,0.211648,99183.0,99177.0,0.0001402]
[1738673464080,0.00682236,99178.0,99177.0,0.0001402]
[1738673464285,0.151243,99178.0,99177.0,0.0001402]
[1738673464774,0.15821853,99178.0,99177.0,0.0001402]
[1738673465475,0.15821853,99178.0,99177.0,0.0011402]
[1738673465915,0.27060359,99178.0,99177.0,0.0011402]
[1738673466098,0.58210359,99178.0,99177.0,0.0011402]
[1738673466337,0.68459831,99178.0,99177.0,0.0011402]
[1738673466539,0.58210359,99178.0,99177.0,0.0011402]
[1738673466731,0.58210359,99178.0,99177.0,0.0001402]
[1738673466938,0.56310359,99178.0,99177.0,0.0001402]
[1738673467136,0.56310359,99178.0,99177.0,0.0011402]
[1738673467557,0.58610359,99178.0,99177.0,0.0011402]
[1738673468336,0.58610359,99178.0,99177.0,0.0021402]
[1738673468754,0.58610359,99178.0,99177.0,0.0011402]
[1738673468954,0.53289724,99178.0,99177.0,0.0021402]
[1738673469160,0.41391853,99178.0,99177.0,0.0021402]
[1738673469534,0.28167553,99178.0,99177.0,0.0011402]
[1738673469916,0.43291853,99178.0,99177.0,0.0011402]
[1738673470132,0.43491853,99178.0,99177.0,0.0011402]
[1738673470554,0.43291853,99178.0,99177.0,0.0011402]
[1738673470960,0.00697553,99178.0,99177.0,0.0011402]
[1738673471304,0.201639,99187.0,99177.0,0.0011402]
[1738673471506,0.00705633,99178.0,99177.0,0.0011402]
[1738673471732,0.01,99180.0,99177.0,0.0011402]
[1738673471892,0.00705633,99178.0,99177.0,0.0011402]
[1738673472105,0.001,99178.0,99177.0,0.0011402]
[1738673472317,0.011,99178.0,99177.0,0.0011402]
[1738673472530,0.00718569,99178.0,99177.0,0.0011402]
[1738673472731,0.01,99181.0,99177.0,0.0011402]
[1738673472931,0.0071861,99180.0,99177.0,0.0021402]
[1738673473142,0.08024193,99196.0,99179.0,0.151241]
[1738673473341,0.01,99183.0,99177.0,0.0021402]
[1738673473550,0.151243,99178.0,99177.0,0.00036469]
[1738673473749,0.15846076,99178.0,99177.0,0.00036469]
[1738673473983,0.15846076,99178.0,99177.0,0.00136469]
[1738673474527,0.01621776,99178.0,99177.0,0.00236469]
[1738673474730,0.32390269,99178.0,99177.0,0.00236469]
[1738673474947,0.25366076,99178.0,99177.0,0.00236469]
[1738673475149,0.24466076,99178.0,99177.0,0.00136469]
[1738673475556,0.24566076,99178.0,99177.0,0.00036469]
[1738673475957,0.24566076,99178.0,99177.0,0.00136469]
[1738673476192,0.16846076,99178.0,99177.0,0.00136469]
[1738673476398,0.16846076,99178.0,99177.0,0.00036469]
[1738673476573,0.15546076,99178.0,99177.0,0.00136469]
[1738673476806,0.16293561,99178.0,99177.0,0.00136469]
[1738673477033,0.15293561,99178.0,99177.0,0.00136469]
[1738673477238,0.16293561,99178.0,99177.0,0.00136469]
[1738673477371,0.16193561,99178.0,99177.0,0.00136469]
[1738673477777,0.17717135,99178.0,99177.0,0.00136469]
[1738673478401,0.16193561,99178.0,99177.0,0.00136469]
[1738673478602,0.02247485,99178.0,99177.0,0.00136469]
[1738673478777,0.01247485,99178.0,99177.0,0.00136469]
[1738673479123,0.02247485,99178.0,99177.0,0.00136469]
[1738673479530,0.01247485,99178.0,99177.0,0.00136469]
[1738673479751,0.01247485,99178.0,99177.0,0.00236469]
[1738673479948,0.006,99178.0,99177.0,0.15360869]
[1738673480164,0.006,99178.0,99177.0,0.15260869]
[1738673480372,0.0001069,99187.0,99177.0,0.0015744]
[1738673480646,0.0101069,99187.0,99186.0,0.01666667]
[1738673480959,0.1613359,99187.0,99186.0,0.01666667]
[1738673481152,0.16793925,99187.0,99186.0,0.01666667]
[1738673481594,0.14893925,99187.0,99186.0,0.01666667]
[1738673482381,0.01660335,99187.0,99186.0,0.01666667]
[1738673482923,0.00660335,99187.0,99186.0,0.01666667]
[1738673483307,0.151226,99190.0,99186.0,0.01766667]
[1738673483462,0.00660335,99187.0,99186.0,0.01766667]
[1738673483676,0.01,99188.0,99186.0,0.01766667]
[1738673483876,0.00660335,99187.0,99186.0,0.16889767]
[1738673484079,0.01,99200.0,99186.0,0.16745173]
[1738673484281,0.151206,99202.0,99187.0,0.10359467]
[1738673484645,0.00663539,99201.0,99196.0,0.151215]
[1738673484846,0.01,99199.0,99194.0,0.151217]
[1738673485056,0.01,99199.0,99191.0,0.201631]
[1738673485206,0.00663479,99198.0,99187.0,0.10238506]
[1738673485408,0.151205,99204.0,99196.0,0.151215]
[1738673485841,0.00664926,99203.0,99195.0,0.151217]
[1738673486041,0.01,99199.0,99195.0,0.151217]
[1738673486236,0.01,99199.0,99194.0,0.151218]
[1738673486409,0.19925126,99206.0,99187.0,0.10338506]
[1738673486615,0.00997222,99198.0,99193.0,0.151219]
[1738673486809,0.151206,99203.0,99193.0,0.151219]
[1738673487016,0.00997458,99197.0,99187.0,0.10438506]
[1738673487230,0.151205,99203.0,99193.0,0.151218]
[1738673487648,0.00997625,99202.0,99193.0,0.151218]
[1738673487860,0.16118225,99202.0,99193.0,0.151218]
[1738673488388,0.00997625,99202.0,99194.0,0.151217]
[1738673488589,0.151208,99201.0,99187.0,0.30502406]
[1738673488794,0.00990392,99200.0,99193.0,0.151219]
[1738673488934,0.0001069,99199.0,99193.0,0.151219]
[1738673489297,0.00990325,99198.0,99188.0,0.00120958]
[1738673489501,0.00990325,99198.0,99197.0,0.151214]
[1738673489662,0.0001069,99199.0,99189.0,0.10238506]
[1738673489827,0.0001069,99199.0,99190.0,0.00120954]
[1738673490034,0.0001069,99199.0,99190.0,0.1035946]
[1738673490239,0.00990325,99198.0,99197.0,0.151214]
[1738673490636,0.0001069,99199.0,99193.0,0.201625]
[1738673490894,0.0001069,99199.0,99198.0,0.151212]
[1738673491100,0.0001069,99199.0,99193.0,0.201625]
[1738673491341,0.0001069,99199.0,99194.0,0.151218]
[1738673491545,0.201605,99204.0,99194.0,0.151218]
[1738673491747,0.00990325,99198.0,99190.0,0.10238506]
[1738673491905,0.08024193,99207.0,99195.0,0.151217]
[1738673492311,0.201602,99205.0,99197.0,0.001]
[1738673492711,0.00990526,99204.0,99197.0,0.152213]
[1738673492910,0.16110826,99204.0,99195.0,0.151217]
[1738673493108,0.00990526,99204.0,99190.0,0.10238506]
[1738673493431,0.00990526,99204.0,99195.0,0.202621]
[1738673493608,0.16111026,99204.0,99195.0,0.25460106]
[1738673493825,0.00990526,99204.0,99195.0,0.10238506]
[1738673494008,0.00990526,99204.0,99203.0,0.151205]
[1738673494205,0.01501442,99213.0,99196.0,0.00120949]
[1738673494410,0.151196,99209.0,99196.0,0.20282949]
[1738673494609,0.00991632,99208.0,99196.0,0.201621]
[1738673494830,0.201588,99212.0,99204.0,0.151202]
[1738673495073,0.0099188,99207.0,99204.0,0.151202]
[1738673495276,0.201586,99214.0,99198.0,0.201616]
[1738673495572,0.151198,99208.0,99198.0,0.201616]
[1738673495745,0.01552144,99216.0,99199.0,0.00120951]
[1738673495746,0.0099208,99213.0,99199.0,0.00120951]
[1738673495956,0.00994657,99207.0,99202.0,0.201607]
[1738673496296,0.00994657,99207.0,99200.0,0.0811]
[1738673496297,0.01515367,99216.0,99203.0,0.00120946]
[1738673496473,0.2457,99217.0,99201.0,0.201609]
[1738673496680,0.151194,99211.0,99202.0,0.151205]
[1738673496882,0.151194,99211.0,99201.0,0.201609]
[1738673497102,0.00994758,99210.0,99203.0,0.151204]
[1738673497240,0.00994758,99210.0,99201.0,0.201609]
[1738673497241,0.00994758,99210.0,99204.0,0.151203]
[1738673498117,0.00994758,99210.0,99205.0,0.1512]
[1738673498282,0.00994758,99210.0,99196.0,0.001]
[1738673498482,0.26109732,99217.0,99197.0,0.30521351]
[1738673498688,0.151187,99215.0,99198.0,0.201616]
[1738673498949,0.00994958,99216.0,99199.0,0.00120945]
[1738673499120,0.201586,99213.0,99200.0,0.00120955]
[1738673499327,0.00994925,99215.0,99207.0,0.151199]
[1738673499531,0.00994825,99212.0,99208.0,0.00120944]
[1738673499809,0.151189,99214.0,99207.0,0.151197]
[1738673500018,0.00994791,99211.0,99208.0,0.151196]
[1738673500189,0.151187,99215.0,99208.0,0.151196]
[1738673500407,0.00994758,99210.0,99209.0,0.00120945]
[1738673500697,0.0001069,99221.0,99215.0,0.151186]
[1738673500932,0.0001069,99221.0,99220.0,0.151179]
[1738673501123,0.0001069,99221.0,99220.0,0.25356406]
[1738673501453,0.07696706,99239.0,99220.0,0.10238506]
[1738673501658,0.151158,99234.0,99221.0,0.10238506]
[1738673501858,0.151155,99236.0,99221.0,0.10238506]
[1738673502213,0.201535,99238.0,99230.0,0.151163]
[1738673502214,0.151151,99238.0,99230.0,0.151163]
[1738673502445,0.151153,99237.0,99230.0,0.151163]
[1738673502664,0.01498994,99246.0,99231.0,0.00120917]
[1738673502863,0.15,99247.0,99223.0,0.00120908]
[1738673502864,0.151146,99242.0,99223.0,0.00120908]
[1738673503101,0.151143,99244.0,99224.0,0.10238506]
[1738673503307,0.529817,99248.0,99225.0,0.0012091]
[1738673503308,0.00995793,99241.0,99225.0,0.0012091]
[1738673503507,0.00995793,99241.0,99238.0,0.15115]
[1738673503712,0.00995793,99241.0,99236.0,0.151153]
[1738673503843,0.00995793,99241.0,99227.0,0.0012091]
[1738673504048,0.529817,99248.0,99229.0,0.201553]
[1738673504049,0.2457,99248.0,99229.0,0.201553]
[1738673504281,0.2457,99248.0,99230.0,0.23888228]
[1738673504282,0.151138,99247.0,99230.0,0.23888228]
[1738673504459,0.16109793,99247.0,99239.0,0.151149]
[1738673505393,0.00995993,99247.0,99237.0,0.151152]
[1738673505601,0.151139,99246.0,99239.0,0.001]
[1738673505805,0.00995993,99247.0,99239.0,0.001]
[1738673506008,0.151148,99240.0,99239.0,0.001]
[1738673506183,0.16116665,99240.0,99239.0,0.001]
[1738673506409,0.14216665,99240.0,99239.0,0.001]
[1738673508630,0.14216665,99240.0,99239.0,0.002]
[1738673509600,0.22396665,99240.0,99239.0,0.002]
[1738673510382,0.22396665,99240.0,99239.0,0.001]
[1738673511002,0.09181865,99240.0,99216.0,0.151184]
[1738673511200,0.151174,99224.0,99216.0,0.1513242]
[1738673511402,0.09142758,99240.0,99216.0,0.1513242]
[1738673511403,0.00962224,99223.0,99216.0,0.0001402]
[1738673511604,0.151183,99217.0,99216.0,0.0001402]
[1738673511806,0.15957849,99217.0,99216.0,0.0001402]
[1738673512210,0.15957849,99217.0,99216.0,0.0011402]
[1738673512879,0.15957849,99217.0,99216.0,0.0001402]
[1738673514296,0.15957849,99217.0,99216.0,0.0011402]
[1738673514531,0.23857849,99217.0,99216.0,0.0011402]
[1738673514963,0.23857849,99217.0,99216.0,0.00236448]
[1738673515374,0.23857849,99217.0,99216.0,0.00136448]